[Event "7th Summer Cup 2024"]
[Site "Rhodes"]
[Date "2024.06.30"]
[Round "9.11"]
[White "Al Maamari, Wafia Darwish"]
[Black "Girard, Adrien"]
[Result "1-0"]
[ECO "A12"]
[WhiteElo "1933"]
[BlackElo "1828"]
[Annotator "RC"]
[PlyCount "91"]
[EventDate "2024.06.21"]
[EventType "swiss"]
[EventCountry "GRE"]
[SourceTitle "playchess.com"]
[Source "ChessBase"]
[SourceQuality "1"]
[TimeControl "40/5400+30:900+30"]

1. Nf3 {[%emt 0:00:05]} d5 {[%emt 0:00:09]} 2. b3 {[%emt 0:00:08]} Bg4 {[%emt 0:00:20]} 3. e3 {[%emt 0:02:31]} Nf6 {[%emt 0:00:12]} 4. Bb2 {[%emt 0:00:30]} Nbd7 {[%emt 0:00:29]} 5. Be2 {[%emt 0:01:30]} e6 {[%emt 0:00:34]} 6. c4 {[%emt 0:01:20]} c6 {[%emt 0:00:26]} 7. O-O {[%emt 0:02:10]} Bd6 {[%emt 0:01:09]} 8. Nc3 {[%emt 0:03:27]} O-O {[%emt 0:01:24]} 9. h3 {[%emt 0:02:02]} Bh5 {[%emt 0:00:25]} 10. Rc1 {[%emt 0:03:00]} a6 {[%emt 0:01:50]} 11. cxd5 {[%emt 0:02:51]} cxd5 {[%emt 0:00:40]} 12. Nd4 {[%emt 0:02:25]} Bxe2 {[%emt 0:00:32]} 13. Qxe2 {[%emt 0:02:40]} Qe7 {[%emt 0:03:22]} 14. d3 {[%emt 0:05:08]} Ba3 {[%emt 0:01:21]} 15. Bxa3 {[%emt 0:03:41]} Qxa3 {[%emt 0:00:07]} 16. Rc2 {[%emt 0:03:43]} Rac8 {[%emt 0:05:36]} 17. Rfc1 {[%emt 0:06:29]} Rc7 {[%emt 0:01:55]} 18. g4 {[%emt 0:11:30]} Rfc8 {[%emt 0:01:06]} 19. Qd2 {[%emt 0:09:02]} Ne8 {[%emt 0:05:36]} 20. Kg2 {[%emt 0:03:32]} Qe7 {[%emt 0:02:04]} 21. Na4 {[%emt 0:03:36]} Rxc2 {[%emt 0:04:00]} 22. Rxc2 {[%emt 0:00:05]} Rxc2 {[%emt 0:00:06]} 23. Qxc2 {[%emt 0:00:03]} b5 {[%emt 0:00:11]} 24. Qc8 {[%emt 0:04:31]} Kf8 {[%emt 0:06:57]} 25. Nc3 {[%emt 0:03:15]} Qd6 {[%emt 0:01:09]} 26. Nc6 {[%emt 0:09:20]} Qc7 {[%emt 0:01:40]} 27. Qxa6 {[%emt 0:01:06]} Nc5 {[%emt 0:01:24]} 28. Qxb5 {[%emt 0:00:56]} Nxd3 {[%emt 0:00:21]} 29. Qxd3 {[%emt 0:00:26]} Qxc6 {[%emt 0:00:04]} 30. f3 {[%emt 0:00:27]} Nd6 {[%emt 0:00:41]} 31. a4 {[%emt 0:00:44]} Ke7 {[%emt 0:00:46]} 32. Kf2 {[%emt 0:01:00]} h6 {[%emt 0:00:33]} 33. Ke2 {[%emt 0:00:18]} Qc5 {[%emt 0:02:58]} 34. Kd2 {[%emt 0:03:27]} Qb4 {[%emt 0:01:05]} 35. Kc2 {[%emt 0:00:26]} Kd7 {[%emt 0:00:32]} 36. Qd4 {[%emt 0:01:31]} Qxd4 {[%emt 0:00:43]} 37. exd4 {[%emt 0:00:05]} Kc6 {[%emt 0:00:09]} 38. a5 {[%emt 0:01:23]} Nb5 {[%emt 0:00:36]} 39. Nxb5 {[%emt 0:00:10]} Kxb5 {[%emt 0:56:48]} 40. b4 {[%emt 0:00:00]} g5 {[%emt 0:00:00]} 41. Kd3 {[%emt 0:02:50]} f6 {[%emt 0:00:00]} 42. Ke3 {[%emt 0:02:08]} Kc6 {[%emt 0:16:30]} 43. f4 {[%emt 0:01:20]} Kb5 {[%emt 0:00:00]} 44. Kf3 {[%emt 0:03:52]} Ka6 {[%emt 0:00:00]} 45. Kg3 {[%emt 0:00:57]} Kb5 {[%emt 0:00:00]} 46. h4 {[%emt 0:01:18]} 1-0

[Event "7th Summer Cup 2024"]
[Site "Rhodes"]
[Date "2024.06.30"]
[Round "9.12"]
[White "Michelakis, Evaggelos"]
[Black "Perrakis, Polychronis"]
[Result "1-0"]
[ECO "C40"]
[WhiteElo "1734"]
[BlackElo "1754"]
[Annotator "NA RC"]
[PlyCount "97"]
[EventDate "2024.06.21"]
[EventType "swiss"]
[EventCountry "GRE"]
[SourceTitle "playchess.com"]
[Source "ChessBase"]
[SourceQuality "1"]
[TimeControl "40/5400+30:900+30"]

1. e4 {[%emt 0:10:11]} e5 {[%emt 0:00:15]} 2. Nf3 {[%emt 0:00:09]} d5 {[%emt 0:02:17]} 3. exd5 {[%emt 0:00:49]} e4 {[%emt 0:00:46]} 4. Ne5 {[%emt 0:01:28]} Nf6 {[%emt 0:04:44]} 5. Bb5+ {[%emt 0:01:57]} c6 {[%emt 0:05:57]} 6. dxc6 {[%emt 0:00:56]} bxc6 {[%emt 0:00:02]} 7. Be2 {[%emt 0:05:41]} Bd6 {[%emt 0:03:53]} 8. Ng4 {[%emt 0:06:38]} Nd5 {[%emt 0:01:09]} 9. Nc3 {[%emt 0:01:41]} Nf4 {[%emt 0:03:27]} 10. Ne3 {[%emt 0:01:18]} f5 {[%emt 0:01:38]} 11. d3 {[%emt 0:02:26]} exd3 {[%emt 0:03:04]} 12. Bxd3 {[%emt 0:01:11]} O-O {[%emt 0:01:53]} 13. Qf3 {[%emt 0:05:30]} Nxd3+ {[%emt 0:04:28]} 14. cxd3 {[%emt 0:01:00]} g5 {[%emt 0:15:41]} 15. g3 {[%emt 0:03:14]} Qe7 {[%emt 0:02:03]} 16. Qe2 {[%emt 0:02:08]} Qf7 {[%emt 0:02:35]} 17. Bd2 {[%emt 0:00:38]} Ba6 {[%emt 0:04:04]} 18. O-O-O {[%emt 0:01:51]} Nd7 {[%emt 0:01:06]} 19. Nc4 {[%emt 0:02:42]} Be7 {[%emt 0:12:53]} 20. h4 {[%emt 0:03:27]} g4 {[%emt 0:01:39]} 21. Bf4 {[%emt 0:05:28]} Rfe8 {[%emt 0:02:54]} 22. Ne3 {[%emt 0:06:33]} Bc5 {[%emt 0:02:13]} 23. f3 {[%emt 0:01:20]} Bxe3+ {[%emt 0:04:33]} 24. Bxe3 {[%emt 0:00:18]} Nf6 {[%emt 0:01:16]} 25. Rhf1 {[%emt 0:05:08]} Re5 {[%emt 0:02:40]} 26. Qf2 {[%emt 0:04:08]} Rae8 {[%emt 0:03:28]} 27. Bd4 {[%emt 0:01:30]} R5e7 {[%emt 0:06:24]} 28. Bxf6 {[%emt 0:00:11]} Qxf6 {[%emt 0:00:32]} 29. fxg4 {[%emt 0:00:10]} Re3 {[%emt 0:01:40]} 30. Kc2 {[%emt 0:02:05]} Qd4 {[%emt 0:02:12]} 31. Qxf5 {[%emt 0:00:35]} Re2+ {[%emt 0:01:59]} 32. Rd2 {[%emt 0:01:57]} Rxd2+ {[%emt 0:02:27]} 33. Kxd2 {[%emt 0:00:16]} Qe3+ {[%emt 0:00:26]} 34. Kc2 {[%emt 0:00:25]} Qe7 {[%emt 0:00:39]} 35. Ne4 {[%emt 0:01:48]} Bxd3+ {[%emt 0:00:31]} 36. Kxd3 {[%emt 0:00:23]} Rd8+ {[%emt 0:00:16]} 37. Ke2 {[%emt 0:00:52]} Rd5 {[%emt 0:00:31]} 38. Qf4 {[%emt 0:02:50]} Re5 {[%emt 0:00:35]} 39. Kf3 {[%emt 0:00:09]} c5 {[%emt 0:00:33]} 40. Re1 {[%emt 0:00:00]} Kh8 {[%emt 0:00:00]} 41. Kf2 {[%emt 0:01:15]} Re6 {[%emt 0:01:31]} 42. h5 {[%emt 0:01:49]} Qd8 {[%emt 0:00:16]} 43. Kg2 {[%emt 0:01:22]} Qe7 {[%emt 0:00:36]} 44. h6 {[%emt 0:00:38]} c4 {[%emt 0:00:48]} 45. Qb8+ {[%emt 0:00:14]} Qe8 {[%emt 0:00:13]} 46. Qxe8+ {[%emt 0:00:09]} Rxe8 {[%emt 0:00:07]} 47. g5 {[%emt 0:00:47]} Rb8 {[%emt 0:00:40]} 48. Re2 {[%emt 0:01:10]} Kg8 {[%emt 0:00:36]} 49. Nd6 {[%emt 0:00:20]} 1-0

[Event "7th Summer Cup 2024"]
[Site "Rhodes"]
[Date "2024.06.30"]
[Round "9.13"]
[White "Van de Lagemaat, Arend"]
[Black "Mohammed Saeed Alshamsi"]
[Result "1-0"]
[ECO "E06"]
[WhiteElo "2030"]
[BlackElo "1474"]
[Annotator "RC"]
[PlyCount "85"]
[EventDate "2024.06.21"]
[EventType "swiss"]
[EventCountry "GRE"]
[SourceTitle "playchess.com"]
[Source "ChessBase"]
[SourceQuality "1"]
[TimeControl "40/5400+30:900+30"]

1. d4 {[%emt 0:00:03]} Nf6 {[%emt 0:04:10]} 2. Nf3 {[%emt 0:00:05]} e6 {[%emt 0:00:18]} 3. g3 {[%emt 0:00:03]} Be7 {[%emt 0:00:18]} 4. Bg2 {[%emt 0:00:03]} O-O {[%emt 0:00:21]} 5. O-O {[%emt 0:00:03]} d5 {[%emt 0:00:12]} 6. c4 {[%emt 0:00:05]} c6 {[%emt 0:00:09]} 7. Qc2 {[%emt 0:00:09]} b6 {[%emt 0:00:10]} 8. Nbd2 {[%emt 0:00:05]} Bb7 {[%emt 0:00:05]} 9. e4 {[%emt 0:00:09]} Na6 {[%emt 0:00:05]} 10. a3 {[%emt 0:00:04]} c5 {[%emt 0:03:12]} 11. exd5 {[%emt 0:01:17]} exd5 {[%emt 0:00:51]} 12. dxc5 {[%emt 0:00:13]} Nxc5 {[%emt 0:00:46]} 13. b4 {[%emt 0:04:53]} Nce4 {[%emt 0:02:53]} 14. Bb2 {[%emt 0:04:22]} dxc4 {[%emt 0:10:24]} 15. Nxc4 {[%emt 0:11:07]} Rc8 {[%emt 0:02:59]} 16. Qe2 {[%emt 0:11:18]} Ba6 {[%emt 0:02:45]} 17. Nfe5 {[%emt 0:02:30]} Nd6 {[%emt 0:04:18]} 18. Rfc1 {[%emt 0:03:40]} Nxc4 {[%emt 0:05:00]} 19. Nxc4 {[%emt 0:00:57]} Re8 {[%emt 0:02:21]} 20. Bf1 {[%emt 0:01:31]} Bxb4 {[%emt 0:03:32]} 21. Qf3 {[%emt 0:01:52]} Be7 {[%emt 0:03:15]} 22. Ne3 {[%emt 0:09:59]} Bxf1 {[%emt 0:00:51]} 23. Rxf1 {[%emt 0:00:32]} Qd7 {[%emt 0:12:22]} 24. Rac1 {[%emt 0:05:55]} Rxc1 {[%emt 0:07:56]} 25. Rxc1 {[%emt 0:00:06]} Rc8 {[%emt 0:00:29]} 26. Rxc8+ {[%emt 0:02:39]} Qxc8 {[%emt 0:00:11]} 27. Nf5 {[%emt 0:00:09]} Bd8 {[%emt 0:05:26]} 28. g4 {[%emt 0:06:31]} Ne8 {[%emt 0:04:47]} 29. Kg2 {[%emt 0:07:40]} Qd7 {[%emt 0:05:19]} 30. Qa8 {[%emt 0:04:07]} h6 {[%emt 0:03:53]} 31. h3 {[%emt 0:04:15]} Kh7 {[%emt 0:03:01]} 32. Qe4 {[%emt 0:02:18]} Nf6 {[%emt 0:02:08]} 33. Qc2 {[%emt 0:05:25]} g6 {[%emt 0:02:57]} 34. Ne3 {[%emt 0:02:45]} Qe6 {[%emt 0:03:30]} 35. Qc3 {[%emt 0:01:57]} Qe4+ {[%emt 0:01:28]} 36. Kg1 {[%emt 0:01:02]} Kg7 {[%emt 0:01:06]} 37. h4 {[%emt 0:01:01]} g5 {[%emt 0:01:13]} 38. h5 {[%emt 0:02:41]} Kh7 {[%emt 0:00:50]} 39. Qb3 {[%emt 0:02:06]} Qe6 {[%emt 0:02:03]} 40. Qd3+ {[%emt 0:00:00]} Qe4 {[%emt 0:00:00]} 41. Qxd8 {[%emt 0:01:02]} Qb1+ {[%emt 0:01:51]} 42. Nd1 {[%emt 0:00:44]} Ng8 {[%emt 0:00:24]} 43. Qd5 {[%emt 0:00:52]} 1-0

[Event "7th Summer Cup 2024"]
[Site "Rhodes"]
[Date "2024.06.30"]
[Round "9.14"]
[White "Katsiaras, Dimitrios"]
[Black "Heesen, Jos"]
[Result "1-0"]
[ECO "C02"]
[WhiteElo "1471"]
[BlackElo "1866"]
[Annotator "NA RC"]
[PlyCount "47"]
[EventDate "2024.06.21"]
[EventType "swiss"]
[EventCountry "GRE"]
[SourceTitle "playchess.com"]
[Source "ChessBase"]
[SourceQuality "1"]
[TimeControl "40/5400+30:900+30"]

1. e4 {[%emt 0:07:49]} e6 {[%emt 0:00:18]} 2. d4 {[%emt 1:23:41]} d5 {[%emt 0:00:08]} 3. e5 {[%emt 0:00:00]} c5 {[%emt 0:00:07]} 4. Bb5+ {[%emt 0:00:00]} Nc6 {[%emt 0:00:17]} 5. Nf3 {[%emt 0:00:00]} Bd7 {[%emt 0:00:16]} 6. Nc3 {[%emt 0:00:00]} a6 {[%emt 0:01:02]} 7. Bxc6 {[%emt 0:00:00]} Bxc6 {[%emt 0:00:40]} 8. O-O {[%emt 0:00:00]} Qb6 {[%emt 0:00:49]} 9. b3 {[%emt 0:00:00]} cxd4 {[%emt 0:01:33]} 10. Qxd4 {[%emt 0:00:00]} Bc5 {[%emt 0:01:38]} 11. Qg4 {[%emt 0:00:00]} Kf8 {[%emt 0:01:24]} 12. Na4 {[%emt 0:00:00]} Bxa4 {[%emt 0:00:52]} 13. Qxa4 {[%emt 0:00:00]} Ne7 {[%emt 0:02:20]} 14. Ba3 {[%emt 0:00:00]} Rc8 {[%emt 0:02:38]} 15. Rac1 {[%emt 0:00:00]} Bxa3 {[%emt 0:02:47]} 16. Qxa3 {[%emt 0:00:00]} Rc3 {[%emt 0:00:39]} 17. Rfd1 {[%emt 0:00:00]} Qc7 {[%emt 0:04:04]} 18. Rd3 {[%emt 0:00:00]} Kg8 {[%emt 0:03:20]} 19. Rxc3 {[%emt 0:00:00]} Nc6 {[%emt 0:01:43]} 20. Qd6 {[%emt 0:00:00]} Qc8 {[%emt 0:00:32]} 21. Nd4 {[%emt 0:00:00]} h6 {[%emt 0:02:04]} 22. Nxc6 {[%emt 0:00:00]} bxc6 {[%emt 0:00:17]} 23. Rxc6 {[%emt 0:00:00]} Qb7 {[%emt 0:02:21]} 24. Rb6 {[%emt 0:00:00]} 1-0